bitfinex-derivatives/quotes_BNBF0:USTF0_20250904
["timestamp","ask_amount","ask_price","bid_price","bid_amount"]
[1756969161239,0.79294516,847.34,846.51,0.79497914]
[1756969161941,0.79294516,847.33,846.52,0.79497914]
[1756969163241,0.79294516,847.34,846.51,0.79497914]
[1756969164037,0.79294516,847.31,846.53,0.79497914]
[1756969165238,0.79294516,847.32,846.53,0.79497914]
[1756969166141,0.79294516,847.32,846.52,0.79497914]
[1756969166539,0.79294516,847.31,846.53,0.79497914]
[1756969169643,0.79294516,847.3,846.53,0.79497914]
[1756969170343,0.79294516,847.29,846.54,0.79497914]
[1756969172547,0.79294516,847.33,846.52,0.79497914]
[1756969172749,0.79294516,847.32,846.52,0.79497914]
[1756969173248,0.79294516,847.46,846.44,0.79497914]
[1756969173542,0.79294516,847.57,846.53,0.79497914]
[1756969174446,0.79294516,847.62,846.55,0.79497914]
[1756969175246,0.79294516,847.61,846.55,0.79497914]
[1756969176049,0.79294516,847.61,846.56,0.79497914]
[1756969176947,0.79294516,847.6,846.56,0.79497914]
[1756969178144,0.79294516,847.6,846.57,0.79497914]
[1756969178745,0.79294516,847.51,846.63,0.79497914]
[1756969179151,0.79294516,847.5,846.63,0.79497914]
[1756969180145,0.79294516,847.5,846.64,0.79497914]
[1756969181049,0.79294516,847.49,846.63,0.79497914]
[1756969182149,0.79294516,847.49,846.64,0.79497914]
[1756969182950,0.79294516,847.47,846.64,0.79497914]
[1756969183151,0.79294516,847.47,846.65,0.79497914]
[1756969183349,0.79294516,847.48,846.64,0.79497914]
[1756969183550,0.79294516,847.49,846.63,0.79497914]
[1756969184151,0.79294516,847.48,846.64,0.79497914]
[1756969185249,0.79294516,847.47,846.65,0.79497914]
[1756969187150,0.79294516,847.46,846.66,0.79497914]
[1756969189057,0.79294516,847.45,846.67,0.79497914]
[1756969189253,0.20540486,847.27,846.67,0.79497914]
[1756969190159,0.20540486,847.27,846.68,0.79497914]
[1756969192260,0.20540486,847.27,846.69,0.79497914]
[1756969193062,0.20540486,847.27,846.7,0.79497914]
[1756969193561,0.20540486,847.27,846.71,0.79497914]
[1756969194058,0.20540486,847.27,846.72,0.79497914]
[1756969194260,0.20540486,847.27,846.75,0.79497914]
[1756969194959,0.20540486,847.27,846.76,0.79497914]
[1756969197764,0.20540486,847.27,846.77,0.79497914]
[1756969198466,0.20540486,847.27,846.76,0.79497914]
[1756969200164,0.20540486,847.27,846.77,0.79497914]
[1756969200765,0.20540486,847.27,846.76,0.79497914]
[1756969200970,0.20540486,847.27,846.72,0.79497914]
[1756969201168,0.20540486,847.27,846.65,0.79497914]
[1756969201370,0.20540486,847.27,846.6,0.79497914]
[1756969201567,0.20540486,847.27,846.61,0.79497914]
[1756969201867,0.20540486,847.27,846.6,0.79497914]
[1756969204367,0.20540486,847.27,846.14,0.20542184]
[1756969204368,0.20540486,847.27,846.61,0.79497914]
[1756969204970,0.20540486,847.27,846.59,0.79497914]
[1756969205171,0.79294516,847.26,846.53,0.79497914]
[1756969205868,0.79294516,847.23,846.51,0.79497914]
[1756969206273,0.99835002,847.27,846.48,0.79497914]
[1756969208175,0.20540486,847.27,846.48,0.79497914]
[1756969208369,0.79294516,847.25,846.44,0.79497914]
[1756969208575,0.79294516,847.24,846.45,0.79497914]
[1756969209170,0.79294516,847.25,846.44,0.79497914]
[1756969209471,0.79294516,847.26,846.46,0.79497914]
[1756969209677,0.99835002,847.27,846.47,0.79497914]
[1756969210273,0.20540486,847.27,846.48,0.79497914]
[1756969211174,0.20540486,847.27,846.5,0.79497914]
[1756969212179,0.20540486,847.27,846.51,0.79497914]
[1756969213480,0.20540486,847.27,846.49,0.79497914]
[1756969214178,0.20540486,847.27,846.46,0.79497914]
[1756969214478,0.20540486,847.27,846.42,0.79497914]
[1756969216179,0.20540486,847.27,846.41,0.79497914]
[1756969216377,0.20540486,847.27,846.42,0.79497914]
[1756969216577,0.20540486,847.27,846.38,0.79497914]
[1756969217178,0.20540486,847.27,846.37,0.79497914]
[1756969218383,0.20540486,847.27,846.38,0.79497914]
[1756969219780,0.99835002,847.27,846.39,0.79497914]
[1756969220981,0.79294516,847.25,846.39,0.79497914]
[1756969221181,0.79294516,847.24,846.37,0.79497914]
[1756969222285,0.79294516,847.25,846.37,0.79497914]
[1756969222785,0.79294516,847.24,846.37,0.79497914]
[1756969223284,0.79294516,847.25,846.37,0.79497914]
[1756969224181,0.79294516,847.25,846.36,0.79497914]
[1756969224383,0.79294516,847.26,846.36,0.79497914]
[1756969225088,0.79294516,847.22,846.38,0.79497914]
[1756969225587,0.79294516,847.22,845.98,0.20544731]
[1756969225588,0.79294516,847.2,846.4,0.79497914]
[1756969225988,0.79294516,847.17,846.42,0.79497914]
[1756969226188,0.79294516,847.16,846.42,0.79497914]
[1756969226385,0.79294516,847.15,846.43,0.79497914]
[1756969228088,0.79294516,847.15,846.42,0.79497914]
[1756969228491,0.79294516,847.16,846.42,0.79497914]
[1756969228888,0.79294516,847.16,846.41,0.79497914]
[1756969229190,0.79294516,847.18,846.4,0.79497914]
[1756969229390,0.79294516,847.19,846.4,0.79497914]
[1756969229887,0.79294516,847.23,846.41,0.79497914]
[1756969230087,0.79294516,847.24,846.43,0.79497914]
[1756969231089,0.79294516,847.23,846.42,0.79497914]
[1756969232596,0.20540486,847.27,846.48,0.79497914]
[1756969234297,0.20540486,847.27,846.49,0.79497914]
[1756969236298,0.20540486,847.27,846.5,0.79497914]
[1756969238101,0.20540486,847.27,846.51,0.79497914]
[1756969238800,0.20540486,847.27,846.52,0.79497914]
[1756969239700,0.20540486,847.27,846.51,0.79497914]
[1756969240000,0.20540486,847.27,846.53,0.79497914]
[1756969241296,0.20540486,847.27,846.54,0.79497914]
[1756969241896,0.20540486,847.27,846.53,0.79497914]
[1756969242197,0.20540486,847.27,846.54,0.79497914]
[1756969243201,0.20540486,847.27,846.55,0.79497914]
[1756969244100,0.20540486,847.27,846.6,0.79497914]
[1756969245302,0.20540486,847.27,846.61,0.79497914]
[1756969247510,0.20540486,847.27,846.62,0.79497914]
[1756969249409,0.20540486,847.27,846.63,0.79497914]
[1756969249607,0.20540486,847.27,846.6,0.79497914]
[1756969250110,0.20540486,847.27,846.61,0.79497914]
[1756969250305,0.20540486,847.27,846.6,0.79497914]
[1756969250607,0.20540486,847.27,846.61,0.79497914]
[1756969250806,0.20540486,847.27,846.6,0.79497914]
[1756969251207,0.20540486,847.27,846.42,0.79497914]
[1756969253115,0.20540486,847.27,846.43,0.79497914]
[1756969255518,0.20540486,847.27,846.44,0.79497914]
[1756969255719,0.20540486,847.27,846.39,0.79497914]
[1756969256117,0.20540486,847.27,846.36,0.79497914]
[1756969261319,0.20540486,847.27,846.37,0.79497914]
[1756969261920,0.20540486,847.27,846.38,0.79497914]
[1756969262124,0.20540486,847.27,846.4,0.79497914]
[1756969262324,0.20540486,847.27,846.52,0.79497914]
[1756969262521,0.20540486,847.27,846.53,0.79497914]
[1756969265925,0.20540486,847.27,846.52,0.79497914]
[1756969266125,0.20540486,847.27,846.56,0.79497914]
[1756969266324,0.20540486,847.27,846.55,0.79497914]
[1756969266929,0.20540486,847.27,846.56,0.79497914]
[1756969271231,0.20540486,847.27,846.55,0.79497914]
[1756969273332,0.20540486,847.27,846.54,0.79497914]
[1756969274834,0.20540486,847.27,846.55,0.79497914]
[1756969275235,0.20540486,847.27,846.54,0.79497914]
[1756969275936,0.20540486,847.27,846.55,0.79497914]
[1756969276534,0.20540486,847.27,846.54,0.79497914]
[1756969276832,0.20540486,847.27,846.55,0.79497914]
[1756969277138,0.20540486,847.27,846.54,0.79497914]
[1756969277334,0.20540486,847.27,846.6,0.79497914]
[1756969277535,0.20540486,847.27,846.42,1.0557657]
[1756969277536,0.20540486,847.27,846.58,0.79497914]
[1756969277737,0.20540486,847.27,846.63,0.79497914]
[1756969279237,0.20540486,847.27,846.62,0.79497914]
[1756969280440,0.20540486,847.27,846.63,0.79497914]
[1756969281241,0.20540486,847.27,846.64,0.79497914]
[1756969281742,0.20540486,847.27,846.62,0.79497914]
[1756969282243,0.20540486,847.27,846.61,0.79497914]
[1756969283343,0.20540486,847.27,846.63,0.79497914]
[1756969283539,0.20540486,847.27,846.68,0.79497914]
[1756969283740,0.20540486,847.27,846.7,0.79497914]
[1756969284043,0.20540486,847.27,846.71,0.79497914]
[1756969284339,0.20540486,847.27,846.7,0.79497914]
[1756969284639,0.20540486,847.27,846.92,0.79497914]
[1756969285138,0.20540486,847.27,846.85,0.79497914]
[1756969286140,0.20540486,847.27,846.84,0.79497914]
[1756969287442,0.20540486,847.27,846.85,0.79497914]
[1756969288246,0.20540486,847.27,846.84,0.79497914]
[1756969289144,0.20540486,847.27,846.83,0.79497914]
[1756969291348,0.20540486,847.27,846.82,0.79497914]
[1756969294349,0.20540486,847.27,846.81,0.79497914]
[1756969294849,0.20540486,847.27,846.86,0.79497914]
[1756969296249,0.20540486,847.27,846.85,0.79497914]
[1756969298148,0.20540486,847.27,846.7,1.0557657]
[1756969298149,0.20540486,847.27,846.84,0.79497914]
[1756969298553,0.20540486,847.27,846.85,0.79497914]
[1756969299649,1.0578998,848.05,846.85,0.79497914]
[1756969299851,1.0578998,848.11,846.87,0.79497914]
[1756969300150,0.20532306,847.48,846.87,0.79497914]
[1756969300351,1.0578998,848.12,846.87,0.79497914]
[1756969300550,0.20530913,847.81,846.87,0.79497914]
[1756969301054,0.20530913,847.81,846.86,0.79497914]
[1756969301354,0.20530913,847.81,846.87,0.79497914]
[1756969302254,0.20530913,847.81,846.86,0.79497914]
[1756969303450,0.20530913,847.81,846.87,0.79497914]
[1756969303654,0.20530913,847.81,846.89,0.79497914]
[1756969304156,0.20530913,847.81,846.88,0.79497914]
[1756969304357,0.20530913,847.81,846.9,0.79497914]
[1756969305255,0.20530913,847.81,846.89,0.79497914]
[1756969306853,0.20530913,847.81,846.91,0.79497914]
[1756969307355,0.20530913,847.81,846.89,0.79497914]
[1756969309256,0.20530913,847.81,846.88,0.79497914]
[1756969309457,0.20530913,847.81,846.85,0.79497914]
[1756969310355,0.20530913,847.81,846.61,1.0557657]
[1756969310356,0.20530913,847.81,846.84,0.79497914]
[1756969311352,0.20530913,847.81,846.81,0.79497914]
[1756969311656,0.20530913,847.81,846.82,0.79497914]
[1756969314057,0.20530913,847.81,846.83,0.79497914]
[1756969317360,0.20530913,847.81,846.84,0.79497914]
[1756969318154,0.20530913,847.81,846.85,0.79497914]
[1756969319256,0.20530913,847.81,846.88,0.79497914]
[1756969319660,0.20530913,847.81,846.87,0.79497914]
[1756969320459,0.20530913,847.81,846.88,0.79497914]
[1756969321359,0.20530913,847.81,846.91,0.79497914]
[1756969321662,0.20530913,847.81,846.94,0.79497914]
[1756969323467,0.20530913,847.81,846.93,0.79497914]
[1756969326165,0.20530913,847.81,846.94,0.79497914]
[1756969327062,0.20530913,847.81,846.93,0.79497914]
[1756969327363,0.20530913,847.81,846.94,0.79497914]
[1756969328663,0.20530913,847.81,846.95,0.79497914]
[1756969329565,0.20530913,847.81,846.96,0.79497914]
[1756969330768,0.20530913,847.81,846.97,0.79497914]
[1756969331368,0.20530913,847.81,846.98,0.79497914]
[1756969331767,0.20530913,847.81,846.97,0.79497914]
[1756969331967,0.20530913,847.81,846.92,0.79497914]
[1756969333177,0.20530913,847.81,846.93,0.79497914]
[1756969333377,0.20530913,847.81,846.94,0.79497914]
[1756969335273,0.20530913,847.81,846.95,0.79497914]
[1756969336177,0.20530913,847.81,846.73,1.0557657]
[1756969336178,0.20530913,847.81,846.96,0.79497914]
[1756969336378,0.20530913,847.81,846.97,0.79497914]
[1756969336675,0.20530913,847.81,846.96,0.79497914]
[1756969336978,0.20530913,847.81,846.97,0.79497914]
[1756969337178,0.20530913,847.81,846.98,0.79497914]
[1756969337375,0.20530913,847.81,847.19,0.79497914]
[1756969337575,0.20530913,847.81,847.36,0.79497914]
[1756969338275,1.0578998,848.6,847.35,0.79497914]
[1756969338475,0.20520199,847.88,847.35,0.79497914]
[1756969338780,1.0578998,848.56,847.37,0.79497914]
[1756969339080,0.20520199,847.88,847.37,0.79497914]
[1756969339376,1.0578998,848.61,847.34,0.79497914]
[1756969339676,1.0578998,848.66,847.32,0.79497914]
[1756969339876,1.0578998,848.65,847.31,0.79497914]
[1756969340080,0.20520562,848.3,847.31,0.79497914]
[1756969340379,0.20520562,848.3,847.28,0.79497914]
[1756969341176,0.20520562,848.3,847.29,0.79497914]
[1756969341375,0.20520562,848.3,847.28,0.79497914]
[1756969341681,0.20520562,848.3,847.27,0.79497914]
[1756969342378,0.20520562,848.3,847.26,0.79497914]
[1756969343180,0.20520562,848.3,847.27,0.79497914]
[1756969343377,0.20520562,848.3,847.26,0.79497914]
[1756969344581,0.20520562,848.3,847.23,0.79497914]
[1756969345182,0.20520562,848.3,845.98,0.20544731]
[1756969345183,0.20520562,848.3,847.25,0.79497914]
[1756969345382,0.20520562,848.3,847.23,0.79497914]
[1756969347386,0.20520562,848.3,847.22,0.79497914]
[1756969347887,0.20520562,848.3,847.23,0.79497914]
[1756969349285,0.20520562,848.3,847.22,0.79497914]
[1756969349584,0.20520562,848.3,847.18,0.79497914]
[1756969350284,0.20520562,848.3,847.17,0.79497914]
[1756969350488,0.20520562,848.3,847.21,0.79497914]
[1756969351787,0.20520562,848.3,847.19,0.79497914]
[1756969353985,0.20520562,848.3,847.18,0.79497914]
[1756969354484,0.20520562,848.3,847.16,0.79497914]
[1756969354685,0.20520562,848.3,847.14,0.79497914]
[1756969354885,0.20520562,848.3,847.15,0.79497914]
[1756969355189,0.20520562,848.3,847.14,0.79497914]
[1756969355890,0.20520562,848.3,847.12,0.79497914]
[1756969357190,0.20520562,848.3,847.13,0.79497914]
[1756969357588,0.20520562,848.3,847.14,0.79497914]
[1756969357886,0.20520562,848.3,847.1,0.79497914]
[1756969358392,0.20520562,848.3,847.11,0.79497914]
[1756969361393,0.20520562,848.3,847.12,0.79497914]
[1756969363393,1.26310542,848.3,847.12,0.79497914]
[1756969363890,1.0578998,848.25,847.14,0.79497914]
[1756969364094,0.20520562,848.3,847.29,0.79497914]
[1756969364293,0.20520562,848.3,847.3,0.79497914]
[1756969366190,0.20520562,848.3,847.31,0.79497914]
[1756969366396,0.20520562,848.3,847.3,0.79497914]
[1756969367296,0.20520562,848.3,847.29,0.79497914]
[1756969368391,0.20520562,848.3,847.3,0.79497914]
[1756969369093,0.20520562,848.3,847.29,0.79497914]
[1756969372801,0.20520562,848.3,847.32,0.79497914]
[1756969373902,0.20520562,848.3,847.33,0.79497914]
[1756969374403,0.20520562,848.3,847.35,0.79497914]
[1756969376303,0.20520562,848.3,847.37,0.79497914]
[1756969376699,0.20520562,848.3,847.38,0.79497914]
[1756969378205,0.20520562,848.3,847.39,0.79497914]
[1756969378906,0.20520562,848.3,847.2,1.0557657]
[1756969378907,0.20520562,848.3,847.41,0.79497914]
[1756969379104,0.20520562,848.3,846.44,2.6359517]
[1756969379105,0.20520562,848.3,847.42,0.79497914]
[1756969379909,0.20520562,848.3,847.41,0.79497914]
[1756969380607,0.20520562,848.3,847.48,0.79497914]
[1756969381410,0.20520562,848.3,847.47,0.79497914]
[1756969383410,0.20520562,848.3,847.46,0.79497914]
[1756969388714,0.20520562,848.3,847.52,0.79497914]
[1756969389010,0.20520562,848.3,847.62,0.79497914]
[1756969389414,0.20520562,848.3,847.61,0.79497914]
[1756969390014,0.20520562,848.3,847.64,0.79497914]
[1756969392117,0.20520562,848.3,847.65,0.79497914]
[1756969392316,0.20520562,848.3,847.64,0.79497914]
[1756969393018,0.20520562,848.3,847.65,0.79497914]
[1756969395214,0.20520562,848.3,847.66,0.79497914]
[1756969395518,0.20520562,848.3,847.65,0.79497914]
[1756969396220,0.20520562,848.3,847.66,0.79497914]
[1756969397016,0.20520562,848.3,847.56,0.79497914]
[1756969397218,0.20520562,848.3,847.66,0.79497914]
[1756969398020,1.0578998,849.18,847.66,0.79497914]
[1756969398318,0.20508529,848.4,847.68,0.79497914]
[1756969398517,1.0578998,849.22,847.68,0.79497914]
[1756969398817,0.20508166,848.4,847.68,0.79497914]
[1756969399224,1.0578998,849.23,847.67,0.79497914]
[1756969399420,0.20508166,848.4,847.67,0.79497914]
[1756969399617,1.0578998,849.23,847.67,0.79497914]
[1756969399819,0.20508166,848.4,847.67,0.79497914]
[1756969400123,1.0578998,849.23,847.67,0.79497914]
[1756969400318,2.6395096,850.48,846.17,2.6359517]
[1756969400319,0.20508166,848.4,847.73,0.79497914]
[1756969400623,1.0578998,849.16,847.73,0.79497914]
[1756969401423,0.20508227,848.81,847.72,0.79497914]
[1756969401920,0.20508227,848.81,847.74,0.79497914]
[1756969404225,0.20508227,848.81,847.73,0.79497914]
[1756969406528,0.20508227,848.81,847.76,0.79497914]
[1756969409530,0.20508227,848.81,847.59,0.79497914]
[1756969409927,0.20508227,848.81,847.6,0.79497914]
[1756969410330,0.20508227,848.81,847.32,0.79497914]
[1756969410529,0.20508227,848.81,847.33,0.79497914]
[1756969411435,0.20508227,848.81,847.38,0.79497914]
[1756969411631,0.20508227,848.81,847.4,0.79497914]
[1756969414134,0.20508227,848.81,847.48,0.79497914]
[1756969414435,0.20508227,848.81,847.49,0.79497914]
[1756969415235,0.20508227,848.81,847.5,0.79497914]
[1756969416830,0.20508227,848.81,847.65,0.79497914]
[1756969417130,0.20508227,848.81,847.64,0.79497914]
[1756969417436,0.20508227,848.81,847.65,0.79497914]
[1756969418330,0.20508227,848.81,847.66,0.79497914]
[1756969419230,0.20508227,848.81,847.67,0.79497914]
[1756969419937,0.20508227,848.81,847.69,0.79497914]
[1756969420137,0.20508227,848.81,847.68,0.79497914]
[1756969420437,0.20508227,848.81,847.69,0.79497914]
[1756969420739,0.20508227,848.81,847.72,0.79497914]
[1756969421336,0.20508227,848.81,847.73,0.79497914]
[1756969422240,0.20508227,848.81,847.74,0.79497914]
[1756969423340,0.20508227,848.81,847.75,0.79497914]
[1756969423540,0.20508227,848.81,847.76,0.79497914]
[1756969423738,0.20508227,848.81,847.76,0.79074142]
[1756969424542,0.20508227,848.81,847.75,0.79074142]
[1756969426242,0.20508227,848.81,847.76,0.79074142]
[1756969426738,0.20508227,848.81,847.77,0.79074142]
[1756969427239,0.20508227,848.81,847.78,0.79074142]
[1756969427638,0.20508227,848.81,847.79,0.79074142]
[1756969428140,0.20508227,848.81,847.44,1.5836486]
[1756969428141,0.20508227,848.81,847.78,0.79074142]
[1756969428340,1.26298207,848.81,847.79,0.79074142]
[1756969428639,0.20508227,848.81,847.79,0.79074142]
[1756969429445,1.0578998,848.8,847.8,0.79074142]
[1756969429639,0.20508227,848.81,847.8,0.79074142]
[1756969430544,1.26298207,848.81,847.8,0.79074142]
[1756969431144,0.20508227,848.81,847.8,0.79074142]
[1756969431344,0.20508227,848.81,846.59,0.20508227]
[1756969431345,0.20508227,848.81,847.78,0.79074142]
[1756969432847,0.20508227,848.81,847.79,0.79074142]
[1756969438345,0.20508227,848.81,846.62,2.6359517]
[1756969438346,0.20508227,848.81,847.8,0.79074142]
[1756969439042,0.20508227,848.81,847.79,0.79074142]
[1756969439247,0.20508227,848.81,847.61,1.0557657]
[1756969439248,0.20508227,848.81,847.81,0.79074142]
[1756969440150,1.26298207,848.81,847.81,0.79074142]
[1756969441150,1.0578998,848.8,847.81,0.79074142]
[1756969441448,0.20508227,848.81,847.81,0.79074142]
[1756969443249,0.20508227,848.81,847.82,0.79074142]
[1756969444447,1.26298207,848.81,847.82,0.79074142]
[1756969445350,1.0578998,848.8,847.83,0.79074142]
[1756969446145,0.20508227,848.81,847.84,0.79074142]
[1756969446146,1.26298207,848.81,847.84,0.79074142]
[1756969446346,1.0578998,848.8,847.84,0.79074142]
[1756969446545,0.20508227,848.81,847.8,0.79074142]
[1756969446749,0.20508227,848.81,846.73,2.6359517]
[1756969446750,0.20508227,848.81,847.88,0.79074142]
[1756969451448,0.20508227,848.81,847.87,0.79074142]
[1756969452153,0.20508227,848.81,847.88,0.79074142]
[1756969452354,0.20508227,848.81,847.89,0.79074142]
[1756969453650,0.20508227,848.81,847.91,0.79074142]
[1756969454053,0.20508227,848.81,847.92,0.79074142]
[1756969454255,0.20508227,848.81,848.02,0.79074142]
[1756969456255,0.20508227,848.81,848.01,0.79074142]
[1756969457153,0.20508227,848.81,848.0,0.79074142]
[1756969457953,0.20508227,848.81,848.02,0.79074142]
[1756969458155,0.20508227,848.81,848.01,0.79074142]
[1756969459057,0.20508227,848.81,848.02,0.79074142]
[1756969459257,0.20508227,848.81,848.01,0.79074142]
[1756969460659,0.20508227,848.81,848.02,0.79074142]
[1756969461159,0.20508227,848.81,848.01,0.79074142]
[1756969461360,0.20508227,848.81,848.02,0.79074142]
[1756969461756,0.20508227,848.81,848.03,0.79074142]
[1756969461956,0.20508227,848.81,846.83,2.6359517]
[1756969461957,0.20508227,848.81,848.04,0.79074142]
[1756969462161,0.20508227,848.81,848.03,0.79074142]
[1756969463061,0.20508227,848.81,848.06,0.79074142]
[1756969463258,0.20508227,848.81,848.05,0.79074142]
[1756969463462,0.20508227,848.81,848.06,0.79074142]
[1756969465464,0.20508227,848.81,848.05,0.79074142]
[1756969465965,0.20508227,848.81,848.06,0.79074142]
[1756969466462,0.20508227,848.81,848.05,0.79074142]
[1756969467168,0.20508227,848.81,848.04,0.79074142]
[1756969467964,0.20508227,848.81,848.01,0.79074142]
[1756969469366,0.20508227,848.81,847.84,1.0557657]
[1756969469367,0.20508227,848.81,847.93,0.79074142]
[1756969469566,0.20508227,848.81,847.9,0.79074142]
[1756969469763,0.20508227,848.81,847.87,0.79074142]
[1756969471272,0.20508227,848.81,847.88,0.79074142]
[1756969474668,0.20508227,848.81,847.9,0.79074142]
[1756969475367,0.20508227,848.81,847.42,1.5836486]
[1756969475368,0.20508227,848.81,847.92,0.79074142]
[1756969476273,0.20508227,848.81,847.94,0.79074142]
[1756969477073,0.20508227,848.81,847.96,0.79074142]
[1756969479776,0.20508227,848.81,847.97,0.79074142]
[1756969479975,0.20508227,848.81,847.92,0.79074142]
[1756969480176,0.20508227,848.81,847.87,0.79074142]
[1756969480471,0.20508227,848.81,847.86,0.79074142]
[1756969480870,0.20508227,848.81,847.85,0.79074142]
[1756969481673,0.20508227,848.81,847.65,1.0557657]
[1756969481674,0.20508227,848.81,847.83,0.79074142]
[1756969482876,0.20508227,848.81,847.65,0.79074142]
[1756969483077,0.20508227,848.81,847.68,0.79074142]
[1756969483375,1.0578998,848.74,847.61,0.79074142]
[1756969484072,1.0578998,848.72,847.59,0.79074142]
[1756969484275,1.0578998,848.73,847.58,0.79074142]
[1756969484472,0.20508227,848.81,847.58,0.79074142]
[1756969484473,1.0578998,848.72,847.58,0.79074142]
[1756969484677,1.0578998,848.73,847.58,0.79074142]
[1756969484972,1.0578998,848.72,847.58,0.79074142]
[1756969485176,1.0578998,848.73,847.58,0.79074142]
[1756969486173,1.0578998,848.74,847.57,0.79074142]
[1756969486774,1.0578998,848.75,847.57,0.79074142]
[1756969487275,1.0578998,848.74,847.58,0.79074142]
[1756969487781,1.0578998,848.74,847.57,0.79074142]
[1756969488079,1.0578998,848.67,847.6,0.79074142]
[1756969488277,1.0578998,848.68,847.59,0.79074142]
[1756969488881,1.0578998,848.67,847.59,0.79074142]
[1756969489080,1.0578998,848.68,847.58,0.79074142]
[1756969490178,1.0578998,848.69,847.58,0.79074142]
[1756969490380,0.20508227,848.81,847.52,0.79074142]
[1756969492181,0.20508227,848.81,847.51,0.79074142]
[1756969493184,0.20508227,848.81,847.52,0.79074142]
[1756969493384,0.20508227,848.81,847.07,1.5836486]
[1756969493385,0.20508227,848.81,847.5,0.79074142]
[1756969494986,1.26298207,848.81,847.43,0.79074142]
[1756969495183,0.20508227,848.81,847.43,0.79074142]
[1756969496282,1.0578998,848.8,847.38,0.79074142]
[1756969497090,1.26298207,848.81,847.38,0.79074142]
[1756969497286,1.0578998,848.7,847.43,0.79074142]
[1756969497582,1.0578998,848.69,847.43,0.79074142]
[1756969498290,1.0578998,848.7,847.42,0.79074142]
[1756969499190,1.0578998,848.71,847.42,0.79074142]
[1756969500789,1.0578998,848.7,847.42,0.79074142]
[1756969501490,1.0578998,848.7,847.41,0.79074142]
[1756969502192,1.0578998,848.71,847.41,0.79074142]
[1756969502797,1.0578998,848.69,847.42,0.79074142]
[1756969503098,1.0578998,848.62,847.45,0.79074142]
[1756969503292,1.0578998,848.62,847.44,0.79074142]
[1756969503492,1.0578998,848.62,847.45,0.79074142]
[1756969504195,1.0578998,848.63,847.44,0.79074142]
[1756969504396,1.0578998,848.61,847.45,0.79074142]
[1756969504598,1.0578998,848.6,847.45,0.79074142]
[1756969504797,0.20508227,848.81,847.41,0.79074142]
[1756969504798,1.0578998,848.61,847.41,0.79074142]
[1756969504995,1.0578998,848.65,847.35,0.79074142]
[1756969505194,1.0578998,848.65,847.32,0.79074142]
[1756969505398,1.0578998,848.65,847.3,0.79074142]
[1756969505597,1.0578998,848.62,847.27,0.79074142]
[1756969505897,1.0578998,848.63,847.27,0.79074142]
[1756969506397,1.0578998,848.64,847.26,0.79074142]
[1756969506900,1.0578998,848.64,847.21,0.79074142]
[1756969507201,1.0578998,848.68,847.2,0.79074142]
[1756969507896,1.0578998,848.68,847.19,0.79074142]
[1756969508300,1.0578998,848.7,847.19,0.79074142]
[1756969509096,1.0578998,848.68,847.2,0.79074142]
[1756969509300,1.0578998,848.69,847.19,0.79074142]
[1756969510299,0.20508227,848.81,846.59,0.20508227]
[1756969510300,1.0578998,848.7,847.18,0.79074142]
[1756969511301,0.20508227,848.81,847.18,0.79074142]
[1756969511302,1.0578998,848.71,847.18,0.79074142]
[1756969512400,0.20508227,848.81,847.18,0.79074142]
[1756969512401,1.0578998,848.72,847.18,0.79074142]
[1756969514201,1.0578998,848.72,847.17,0.79074142]
[1756969514404,1.0578998,848.71,847.16,0.79074142]
[1756969515306,1.0578998,848.72,847.16,0.79074142]
[1756969515804,0.20508227,848.81,847.16,0.79074142]
[1756969515805,1.0578998,848.71,847.16,0.79074142]
[1756969516808,1.0578998,848.71,846.59,0.20508227]
[1756969516809,1.0578998,848.62,847.2,0.79074142]
[1756969517107,1.0578998,848.61,847.2,0.79074142]
[1756969517302,1.0578998,848.8,847.2,0.79074142]
[1756969517507,1.0578998,848.8,847.15,0.79074142]
[1756969518207,1.26298207,848.81,847.16,0.79074142]
[1756969518602,1.0578998,848.8,847.15,0.79074142]
[1756969519505,1.26298207,848.81,847.16,0.79074142]
[1756969519808,1.0578998,848.8,847.16,0.79074142]
[1756969520606,1.0578998,848.79,847.16,0.79074142]
[1756969521809,0.20508227,848.81,847.21,0.79074142]
[1756969522706,0.20508227,848.81,847.2,0.79074142]
[1756969523206,0.20508227,848.81,847.21,0.79074142]
[1756969525210,0.20508227,848.81,846.77,1.5836486]
[1756969525211,0.20508227,848.81,847.22,0.79074142]
[1756969526111,0.20508227,848.81,847.21,0.79074142]
[1756969526307,1.0578998,848.64,847.21,0.79074142]
[1756969526511,1.0578998,848.63,847.19,0.79074142]
[1756969526811,1.0578998,848.66,847.18,0.79074142]
[1756969527206,1.0578998,848.65,847.18,0.79074142]
[1756969527510,0.20508227,848.81,846.59,0.20508227]
[1756969527511,1.0578998,848.62,847.15,0.79074142]
[1756969528209,1.0578998,848.61,847.16,0.79074142]
[1756969529213,1.0578998,848.6,847.16,0.79074142]
[1756969529909,1.0578998,848.54,847.19,0.79074142]
[1756969531112,1.0578998,848.52,847.19,0.79074142]
[1756969532116,1.0578998,848.51,847.2,0.79074142]
[1756969533217,1.0578998,848.5,847.2,0.79074142]
[1756969534117,1.0578998,848.48,847.2,0.79074142]
[1756969534517,1.0578998,848.47,847.2,0.79074142]
[1756969535112,1.0578998,848.45,847.21,0.79074142]
[1756969535913,1.0578998,848.46,847.21,0.79074142]
[1756969536217,1.0578998,848.44,847.22,0.79074142]